bitfinex-derivatives/quotes_SOLF0:USTF0_20250221
["timestamp","ask_amount","ask_price","bid_price","bid_amount"]
[1740128359846,9.9922637,176.45,176.39,4.7969]
[1740128360048,9.9922637,176.47,176.4,9.9922637]
[1740128360344,9.9922637,176.47,176.4,12.24337154]
[1740128360345,0.02595318,176.44,176.4,12.24337154]
[1740128360741,9.9922637,176.47,176.44,5.6656]
[1740128361847,9.9922637,176.47,176.44,5.70602511]
[1740128362353,5.6652,176.46,176.44,0.04042511]
[1740128362647,9.9922637,176.45,176.44,0.04042511]
[1740128363042,15.6577637,176.45,176.44,0.04042511]
[1740128363546,15.6572637,176.47,176.44,0.04042511]
[1740128365848,9.9922637,176.47,176.44,0.04042511]
[1740128366051,15.6577637,176.45,176.44,0.04042511]
[1740128367955,15.6577637,176.45,176.44,2.511e-05]
[1740128376458,5.6671,176.4,176.37,5.6679]
[1740128376758,9.9922637,176.41,176.38,5.6676]
[1740128377551,10.03268881,176.41,176.38,5.70590473]
[1740128379054,10.03268881,176.41,176.38,0.03830473]
[1740128379557,0.04042511,176.41,176.38,10.03056843]
[1740128379855,9.9922637,176.47,176.4,9.9922637]
[1740128380256,9.9922637,176.49,176.46,5.6651]
[1740128380656,9.9922637,176.49,176.47,5.6647]
[1740128380857,9.9922637,176.49,176.46,0.03610838]
[1740128381760,15.6570637,176.47,176.46,0.03610838]
[1740128384565,5.6665,176.42,176.39,6.8382]
[1740128384856,15.6587637,176.42,176.39,6.8382]
[1740128385057,9.9922637,176.42,176.39,6.8382]
[1740128385559,9.9922637,176.42,176.39,6.87446163]
[1740128385761,10.02837208,176.42,176.39,12.54166163]
[1740128385966,0.03610838,176.42,176.39,6.87446163]
[1740128386362,0.03610838,176.42,176.41,5.6667]
[1740128387562,0.03610838,176.42,176.4,5.667]
[1740128387766,10.02837208,176.42,176.39,6.87446163]
[1740128387957,10.02837208,176.42,176.39,4.63926163]
[1740128388668,9.9922637,176.4,176.39,0.03626163]
[1740128390358,9.9922637,176.4,176.39,5.70366163]
[1740128392467,10.02837208,176.42,176.41,5.6667]
[1740128392869,10.02837208,176.42,176.39,0.03626163]
[1740128393167,0.03610838,176.42,176.39,0.03626163]
[1740128393571,0.03610838,176.42,176.41,5.6667]
[1740128394669,9.9922637,176.46,176.39,0.03626163]
[1740128394969,9.9922637,176.46,176.44,5.6655]
[1740128395570,9.9922637,176.46,176.41,2.2581]
[1740128395770,9.9922637,176.46,176.45,5.6655]
[1740128395972,9.9922637,176.48,176.45,5.6655]
[1740128396472,9.9922637,176.46,176.42,2.33624488]
[1740128396673,5.6659,176.44,176.42,2.33624488]
[1740128397070,9.9922637,176.44,176.42,0.04114488]
[1740128397476,15.6581637,176.44,176.42,0.04114488]
[1740128398177,9.9922637,176.44,176.42,0.04114488]
[1740128398879,9.9922637,176.46,176.42,0.04114488]
[1740128399974,9.9922637,176.46,176.45,5.6655]
[1740128400171,9.9922637,176.48,176.42,0.04114488]
[1740128400480,9.9922637,176.48,176.46,5.665]
[1740128400676,9.9922637,176.48,176.42,10.03340858]
[1740128400881,9.9922637,176.48,176.43,6.8257]
[1740128401180,9.9922637,176.48,176.47,5.6648]
[1740128401584,9.9922637,176.48,176.46,0.03730469]
[1740128402574,9.9922637,176.48,176.46,5.70230469]
[1740128404589,9.9922637,176.48,176.46,0.03730469]
[1740128404789,9.9922637,176.5,176.46,0.03730469]
[1740128404989,9.9922637,176.5,176.44,9.9922637]
[1740128405189,9.9922637,176.5,176.46,0.03832287]
[1740128406180,9.9922637,176.52,176.46,0.03832287]
[1740128406384,9.9922637,176.52,176.46,10.03058657]
[1740128407393,9.9922637,176.54,176.51,5.6633]
[1740128407795,5.663,176.53,176.51,0.03584355]
[1740128407987,9.9922637,176.54,176.51,0.03584355]
[1740128408893,15.6548637,176.54,176.51,5.69914355]
[1740128409094,9.9922637,176.54,176.51,0.03584355]
[1740128409394,9.9922637,176.52,176.51,0.03584355]
[1740128412096,15.6554637,176.52,176.51,0.03584355]
[1740128414100,9.9922637,176.52,176.51,5.69934355]
[1740128418397,9.9922637,176.58,176.51,0.03584355]
[1740128418597,9.9922637,176.58,176.51,4.79574355]
[1740128418802,11.0340446,176.6,176.59,5.661]
[1740128419102,11.0340446,176.6,176.54,9.9922637]
[1740128419308,11.0340446,176.6,176.58,0.04072147]
[1740128419602,13.3522446,176.65,176.51,7.1249]
[1740128419796,13.3522446,176.65,176.57,0.04350614]
[1740128420002,9.9922637,176.6,176.57,0.04350614]
[1740128420202,9.9922637,176.6,176.58,5.6611]
[1740128420800,15.6523637,176.62,176.58,5.6611]
[1740128421499,9.9922637,176.62,176.59,5.6609]
[1740128421802,9.9922637,176.62,176.57,0.04350614]
[1740128421999,5.6605,176.61,176.57,0.04350614]
[1740128422205,9.9922637,176.62,176.57,0.04350614]
[1740128423505,15.6523637,176.62,176.58,5.6612]
[1740128423909,15.6523637,176.62,176.57,0.04350614]
[1740128424104,15.6523637,176.62,176.59,5.6609]
[1740128424305,9.9922637,176.62,176.59,5.6609]
[1740128424702,9.9922637,176.62,176.6,5.6606]
[1740128425006,2.3149,176.69,176.57,10.03576984]
[1740128425202,9.9922637,176.65,176.62,5.6598]
[1740128425410,9.9922637,176.65,176.61,0.03897786]
[1740128426410,5.6594,176.64,176.61,0.03897786]
[1740128427104,5.66,176.62,176.61,0.03897786]
[1740128427308,9.9922637,176.65,176.61,0.03897786]
[1740128427708,2.3149,176.69,176.61,0.03897786]
[1740128427913,9.9922637,176.65,176.61,0.03897786]
[1740128428107,9.9922637,176.63,176.61,0.03897786]
[1740128428506,5.66,176.62,176.61,0.03897786]
[1740128429703,9.9922637,176.63,176.61,0.03897786]
[1740128430809,9.9922637,176.65,176.61,5.69927786]
[1740128431201,9.9922637,176.65,176.61,0.03897786]
[1740128431402,5.6597,176.63,176.61,0.03897786]
[1740128431803,5.66,176.62,176.61,0.03897786]
[1740128433212,5.6609,176.6,176.55,5.6622]
[1740128433413,15.6531637,176.6,176.53,9.9922637]
[1740128433613,9.9922637,176.6,176.53,9.9922637]
[1740128433815,9.9922637,176.6,176.57,5.6614]
[1740128434507,0.03897786,176.6,176.59,5.661]
[1740128435412,0.03897786,176.6,176.57,5.69887773]
[1740128435609,0.03897786,176.6,176.57,10.02974143]
[1740128436012,0.03897786,176.6,176.59,5.661]
[1740128436312,0.03897786,176.6,176.59,15.6532637]
[1740128437510,0.03897786,176.6,176.59,5.661]
[1740128439214,0.03897786,176.6,176.58,5.6612]
[1740128439410,15.69214156,176.6,176.57,0.03747773]
[1740128439618,10.03124156,176.6,176.57,0.03747773]
[1740128440018,15.6535637,176.58,176.57,0.03747773]
[1740128442618,5.6613,176.58,176.57,0.03747773]
[1740128444612,0.03897786,176.6,176.57,0.03747773]
[1740128445516,0.03897786,176.6,176.59,5.661]
[1740128447718,5.6587,176.66,176.62,5.6599]
[1740128448620,17.90837848,176.69,176.6,15.59347848]
[1740128448816,16.25338063,176.72,176.62,0.0393326]
[1740128449824,0.65990215,176.72,176.63,15.59347848]
[1740128450320,20.17637848,176.75,176.63,15.59347848]
[1740128450321,17.80747848,176.75,176.66,0.04348636]
[1740128451618,15.59347848,176.72,176.66,0.04348636]
[1740128452216,5.6584,176.67,176.66,0.04348636]
[1740128454219,2.2552,176.71,176.66,0.04348636]
[1740128454419,17.84867848,176.71,176.66,0.04348636]
[1740128454825,5.6582,176.68,176.66,0.04348636]
[1740128455622,17.84867848,176.71,176.66,0.04348636]
[1740128456013,5.658,176.69,176.66,0.04348636]
[1740128456221,17.84867848,176.71,176.66,0.04348636]
[1740128456724,5.6584,176.68,176.66,0.04348636]
[1740128457317,13.26403381,176.75,176.66,0.04348636]
[1740128457521,15.59347848,176.74,176.66,0.04348636]
[1740128458021,5.6577,176.7,176.66,0.04348636]
[1740128458421,15.59347848,176.74,176.66,0.04348636]
[1740128459417,15.59347848,176.71,176.66,0.04348636]
[1740128460126,5.6584,176.67,176.66,0.04348636]
[1740128461027,15.59347848,176.71,176.66,0.04348636]
[1740128461726,5.6575,176.7,176.66,0.04348636]
[1740128461923,15.59347848,176.71,176.66,0.04348636]
[1740128462323,21.25087848,176.71,176.66,5.70218636]
[1740128463127,5.6575,176.7,176.66,5.70218636]
[1740128463323,15.59347848,176.71,176.66,5.70218636]
[1740128463629,21.25087848,176.71,176.66,5.70218636]
[1740128464125,15.59347848,176.71,176.66,5.70218636]
[1740128464329,5.6575,176.7,176.66,5.70218636]
[1740128464524,15.59347848,176.71,176.66,0.04348636]
[1740128465425,15.59347848,176.71,176.68,5.6581]
[1740128465624,5.6567,176.73,176.66,0.04348636]
[1740128465820,15.59347848,176.74,176.66,0.04348636]
[1740128466530,5.6574,176.71,176.66,0.04348636]
[1740128466828,15.59347848,176.74,176.66,0.04348636]
[1740128467029,5.6579,176.69,176.66,0.04348636]
[1740128467427,15.59347848,176.71,176.66,0.04348636]
[1740128467928,15.59347848,176.68,176.58,2.3929]
[1740128468931,5.6593,176.65,176.58,8.0541]
[1740128469230,0.03837535,176.65,176.61,0.03927039]
[1740128469431,5.6594,176.64,176.61,0.03927039]
[1740128469726,0.03837535,176.65,176.61,0.03927039]
[1740128471331,15.63185383,176.65,176.61,0.03927039]
[1740128471525,21.25347848,176.62,176.61,0.03927039]
[1740128471725,15.59347848,176.62,176.53,54.3522937]
[1740128471935,15.59347848,176.59,176.5,4.4923]
[1740128472834,5.69887093,176.56,176.53,0.03594134]
[1740128473035,0.03697093,176.56,176.53,0.03594134]
[1740128473432,5.6625,176.55,176.53,0.03594134]
[1740128474032,0.03697093,176.56,176.53,0.03594134]
[1740128474934,0.03697093,176.56,176.53,5.69874134]
[1740128475132,0.03697093,176.56,176.53,0.03594134]
[1740128475935,0.03697093,176.56,176.53,5.69854134]
[1740128477539,0.03697093,176.56,176.54,5.6624]
[1740128478437,0.03697093,176.56,176.55,5.6623]
[1740128478829,17.84297848,176.65,176.53,0.03594134]
[1740128479030,5.6599,176.63,176.58,5.6612]
[1740128479235,17.84297848,176.65,176.51,15.59347848]
[1740128479737,5.6597,176.63,176.59,5.6607]
[1740128480233,0.0416718,176.6,176.59,5.6607]
[1740128482342,0.0416718,176.6,176.56,0.04065193]
[1740128483551,5.6611,176.59,176.56,0.04065193]
[1740128483752,0.0416718,176.6,176.56,0.04065193]
[1740128483945,5.6613,176.58,176.56,0.04065193]
[1740128484442,0.0416718,176.6,176.56,0.04065193]
[1740128484754,5.6616,176.57,176.56,0.04065193]
[1740128487253,0.0416718,176.6,176.56,0.04065193]
[1740128490654,5.6616,176.57,176.56,0.04065193]
[1740128491857,15.59347848,176.59,176.45,20.30917848]
[1740128492057,5.6639,176.5,176.45,20.30917848]
[1740128492459,5.663,176.53,176.45,20.30917848]
[1740128492760,15.59347848,176.55,176.45,20.30917848]
[1740128493060,0.03886595,176.52,176.48,0.04237106]
[1740128495955,5.6638,176.51,176.48,0.04237106]
[1740128496363,5.6642,176.49,176.48,0.04237106]
[1740128497660,5.664,176.5,176.48,0.04237106]
[1740128499161,5.6636,176.51,176.48,0.04237106]
[1740128499963,15.63234443,176.52,176.48,0.04237106]
[1740128500661,5.6638,176.51,176.48,0.04237106]
[1740128501168,15.63234443,176.52,176.48,0.04237106]
[1740128502060,5.6642,176.49,176.48,0.04237106]
[1740128502460,5.6654,176.46,176.42,5.6664]
[1740128502762,15.59347848,176.49,176.42,5.6664]
[1740128503060,5.6653,176.46,176.42,5.6664]
[1740128503564,5.70142549,176.46,176.42,5.70612698]
[1740128503863,0.03612549,176.46,176.42,0.03972698]
[1740128504461,5.6661,176.43,176.42,0.03972698]
[1740128505252,15.59347848,176.43,176.32,15.59347848]
[1740128505453,15.59347848,176.43,176.36,5.6681]
[1740128505661,5.667,176.41,176.36,5.6681]
[1740128506261,0.04193298,176.4,176.36,5.6681]
[1740128506457,0.04193298,176.4,176.37,0.04003654]
[1740128506656,15.63541146,176.4,176.37,0.04003654]
[1740128506854,15.63541146,176.4,176.29,2.2317]
[1740128507056,15.59347848,176.37,176.31,5.6699]
[1740128508065,0.0431426,176.36,176.32,0.03742597]
[1740128508766,0.0431426,176.36,176.34,5.6687]
[1740128509161,0.0431426,176.36,176.32,0.03742597]
[1740128509364,0.0431426,176.36,176.35,5.6687]
[1740128510263,23.03347848,176.45,176.41,5.6664]
[1740128510464,15.59347848,176.45,176.33,4.5619]
[1740128510856,15.59347848,176.45,176.42,5.6663]
[1740128511458,15.63236145,176.45,176.42,5.70226676]
[1740128511863,15.63236145,176.45,176.42,0.03596676]
[1740128512865,21.29786145,176.45,176.42,0.03596676]
[1740128513070,15.63236145,176.45,176.42,0.03596676]
[1740128513568,5.6658,176.44,176.42,0.03596676]
[1740128514567,0.03888297,176.45,176.42,0.03596676]
[1740128514767,0.03888297,176.45,176.43,5.6661]
[1740128514969,0.03888297,176.45,176.42,0.03596676]
[1740128516370,0.03888297,176.45,176.43,5.666]
[1740128517070,0.03888297,176.45,176.42,0.03596676]
[1740128517268,15.59347848,176.43,176.42,0.03596676]
[1740128517873,21.25957848,176.43,176.42,0.03596676]
[1740128520367,15.59347848,176.43,176.42,0.03596676]
[1740128520571,0.03888297,176.45,176.42,0.03596676]
[1740128522472,21.25957848,176.43,176.42,0.03596676]
[1740128522874,5.6661,176.43,176.42,0.03596676]
[1740128523074,0.03888297,176.45,176.42,0.03596676]
[1740128523678,5.6658,176.44,176.42,0.03596676]
[1740128523879,0.03888297,176.45,176.42,0.03596676]
[1740128524673,5.6661,176.43,176.42,0.03596676]
[1740128525077,21.25957848,176.43,176.42,0.03596676]
[1740128528880,15.59347848,176.43,176.42,0.03596676]
[1740128530684,5.6661,176.43,176.42,0.03596676]
[1740128531185,21.25957848,176.43,176.42,0.03596676]
[1740128531378,15.59347848,176.43,176.33,4.5619]
[1740128531583,15.59347848,176.4,176.33,4.5619]
[1740128531778,15.59347848,176.4,176.33,10.2311]
[1740128532084,4.25232476,176.47,176.29,2.2317]
[1740128532085,5.6686,176.36,176.29,2.2317]
[1740128532284,15.59347848,176.37,176.31,5.6697]
[1740128532482,5.6689,176.35,176.32,0.04245037]
[1740128532885,0.04175719,176.36,176.33,5.6693]
[1740128533987,0.04175719,176.36,176.34,5.669]
[1740128535079,15.27856583,176.47,176.32,0.04245037]
[1740128535283,15.59347848,176.44,176.32,2.4208]
[1740128535884,5.6663,176.43,176.39,5.6671]
[1740128536084,15.59347848,176.44,176.32,2.4208]
[1740128536383,0.0370797,176.43,176.39,0.04069714]
[1740128536591,5.7033797,176.43,176.39,5.70799714]
[1740128537695,5.7033797,176.43,176.4,5.6671]
[1740128538089,0.0370797,176.43,176.39,0.04069714]
[1740128538691,0.0370797,176.43,176.39,2.36309714]
[1740128538892,0.0370797,176.43,176.42,5.6664]
[1740128539898,15.59347848,176.5,176.39,2.36309714]
[1740128540102,15.59347848,176.5,176.4,15.59347848]
[1740128540291,11.02624107,176.52,176.4,15.59347848]
[1740128540696,11.02624107,176.52,176.48,5.6644]
[1740128540995,11.02624107,176.52,176.43,15.59347848]
[1740128541196,11.02624107,176.52,176.48,0.03653503]
[1740128541397,0.0417148,176.49,176.48,0.03653503]
[1740128541592,11.02624107,176.55,176.48,0.03653503]
[1740128541794,206.76003249,176.56,176.48,0.03653503]
[1740128542692,0.03909987,176.54,176.48,0.03653503]
[1740128542899,15.59347848,176.53,176.48,0.03653503]
[1740128543497,5.664,176.5,176.48,0.03653503]
[1740128543896,5.6642,176.49,176.48,0.03653503]
[1740128545095,5.666,176.44,176.4,2.2619]
[1740128545291,15.59347848,176.47,176.4,2.2619]
[1740128545500,15.59347848,176.47,176.36,2.2612]
[1740128545798,15.59347848,176.47,176.36,7.9293]
[1740128546097,15.59347848,176.47,176.37,15.59347848]
[1740128546293,0.0392805,176.43,176.41,5.6667]
[1740128547299,0.0392805,176.43,176.4,0.04061995]
[1740128547501,0.0392805,176.43,176.42,5.6664]
[1740128548698,5.6646,176.48,176.43,5.6659]
[1740128549100,5.6646,176.48,176.38,2.3389]
[1740128549802,0.04204383,176.45,176.44,5.6655]
[1740128549997,5.6642,176.49,176.44,5.6655]
[1740128550198,0.03644934,176.46,176.44,5.6655]
[1740128550398,0.03644934,176.46,176.45,5.6655]
[1740128554507,0.03644934,176.46,176.43,0.03815936]
[1740128554708,5.6657,176.45,176.43,0.03815936]
[1740128555003,0.03644934,176.46,176.43,0.03815936]
[1740128555708,0.03644934,176.46,176.45,5.6655]
[1740128557016,0.03644934,176.46,176.43,0.03815936]
[1740128557210,0.03644934,176.46,176.44,5.6656]
[1740128557509,0.03644934,176.46,176.43,0.03815936]
[1740128558414,5.6657,176.45,176.43,0.03815936]
[1740128560113,0.03644934,176.46,176.43,0.03815936]
[1740128560314,5.6658,176.44,176.43,0.03815936]
[1740128562717,5.6658,176.44,176.43,5.936e-05]
[1740128568713,21.28720723,176.44,176.43,5.936e-05]
[1740128573418,0.03644934,176.46,176.43,5.936e-05]
[1740128574622,5.6655,176.45,176.43,5.936e-05]
[1740128575418,0.03644934,176.46,176.43,5.66615936]
[1740128575621,0.03644934,176.46,176.43,5.936e-05]
[1740128576520,0.03644934,176.46,176.43,5.66595936]
[1740128577926,0.03644934,176.46,176.44,5.6657]
[1740128579221,0.03644934,176.46,176.43,5.936e-05]
[1740128579424,0.03644934,176.46,176.45,5.6655]
[1740128579822,5.6636,176.51,176.48,5.6645]
[1740128580022,11.07777797,176.52,176.44,2.2723]
[1740128580415,30.94946247,176.56,176.44,2.2723]
[1740128580822,30.94946247,176.56,176.45,15.62140723]
[1740128581024,0.04239238,176.52,176.48,0.04186659]
[1740128581828,196.82815401,176.57,176.48,15.66327382]
[1740128582018,5.6616,176.57,176.48,15.66327382]
[1740128582623,5.6616,176.57,176.53,5.6626]
[1740128582824,5.6616,176.57,176.48,15.66327382]
[1740128583022,5.69895761,176.57,176.51,0.04319736]
[1740128583626,5.69895761,176.57,176.51,5.70649736]
[1740128584120,0.03735761,176.57,176.53,5.6628]
[1740128584324,0.03735761,176.57,176.51,0.04319736]
[1740128584827,5.69915761,176.57,176.52,5.6631]
[1740128585427,0.03735761,176.57,176.51,5.70659736]
[1740128585623,5.6621,176.56,176.51,5.70659736]
[1740128586326,0.03735761,176.57,176.52,5.6632]
[1740128586523,0.03735761,176.57,176.51,15.66460459]
[1740128586725,0.03735761,176.57,176.52,4.5942]
[1740128587025,5.6619,176.56,176.52,10.2572]
[1740128588225,0.03735761,176.57,176.52,4.5942]
[1740128588430,0.03735761,176.57,176.51,0.04319736]
[1740128588825,5.6628,176.54,176.51,0.04319736]
[1740128589026,0.03735761,176.57,176.51,0.04319736]
[1740128590022,5.6624,176.55,176.51,0.04319736]
[1740128590222,0.03735761,176.57,176.51,5.70669736]
[1740128590429,0.03735761,176.57,176.51,0.04319736]
[1740128591227,0.03735761,176.57,176.51,15.66460459]
[1740128592633,0.03735761,176.57,176.56,5.6619]
[1740128596436,5.6601,176.62,176.56,2.4039]
[1740128596731,15.62140723,176.65,176.56,4.7776]
[1740128596945,5.6598,176.63,176.56,4.7776]
[1740128597333,5.66,176.62,176.59,5.6609]
[1740128598230,5.6598,176.63,176.59,5.6609]
[1740128599029,5.6595,176.64,176.6,5.6604]
[1740128599233,17.84040723,176.68,176.6,5.6604]
[1740128599434,17.84040723,176.68,176.6,5.6986419]
[1740128599631,17.84040723,176.68,176.6,0.0382419]
[1740128599830,15.62140723,176.65,176.6,0.0382419]
[1740128600726,5.6603,176.61,176.6,0.0382419]
[1740128601940,15.62140723,176.65,176.6,0.0382419]
[1740128602836,5.6598,176.63,176.6,0.0382419]
[1740128603437,5.6594,176.64,176.6,5.6988419]
[1740128603637,15.62140723,176.65,176.6,0.0382419]
[1740128604839,5.6602,176.62,176.6,0.0382419]
[1740128605047,15.62140723,176.65,176.6,0.0382419]
[1740128605743,5.6603,176.61,176.6,0.0382419]
[1740128606138,15.62140723,176.65,176.6,0.0382419]
[1740128606538,5.6603,176.61,176.6,0.0382419]
[1740128607740,15.62140723,176.65,176.6,0.0382419]
[1740128609142,5.6602,176.62,176.6,0.0382419]
[1740128611145,5.6603,176.61,176.6,0.0382419]
[1740128612641,15.62140723,176.65,176.6,0.0382419]
[1740128613646,5.6603,176.62,176.6,0.0382419]
[1740128615947,15.63474333,176.63,176.6,5.6987419]
[1740128616148,9.97494333,176.66,176.6,10.01318523]
[1740128617451,5.6593,176.65,176.62,5.6597]
[1740128621850,15.63314333,176.68,176.65,5.6588]
[1740128622052,9.97494333,176.68,176.62,9.97494333]
[1740128622355,9.97494333,176.68,176.65,0.04041936]
[1740128623752,5.6586,176.67,176.65,0.04041936]
[1740128624046,9.97494333,176.68,176.65,0.04041936]
[1740128624252,9.97494333,176.68,176.65,5.69931936]
[1740128624557,9.97494333,176.68,176.65,0.04041936]
[1740128624757,5.6587,176.66,176.65,0.04041936]
[1740128626557,5.6586,176.67,176.65,0.04041936]
[1740128627558,9.97494333,176.68,176.65,0.04041936]
[1740128627759,9.97494333,176.7,176.65,0.04041936]
[1740128628358,15.63264333,176.7,176.66,5.6585]
[1740128630561,9.97494333,176.7,176.67,5.6582]
[1740128633265,5.6572,176.71,176.68,5.658]
[1740128634561,5.6572,176.71,176.67,5.6583]
[1740128636658,5.6572,176.71,176.68,5.658]
[1740128637262,9.97494333,176.72,176.66,15.63344333]
[1740128637860,5.6577,176.7,176.66,15.63344333]
[1740128638061,9.97494333,176.72,176.66,9.97494333]
[1740128638255,9.97494333,176.72,176.67,5.6584]
[1740128638564,9.97494333,176.72,176.66,9.97494333]
[1740128638961,9.97494333,176.72,176.68,5.658]
[1740128639164,5.6575,176.7,176.66,9.97494333]
[1740128639467,9.97494333,176.72,176.66,9.97494333]
[1740128639666,5.6572,176.71,176.68,5.658]
[1740128640367,15.63184333,176.72,176.66,9.97494333]
[1740128642467,15.63184333,176.72,176.69,5.6577]
[1740128642868,15.63184333,176.72,176.69,5.69717549]
[1740128643169,5.6571,176.71,176.69,0.03947549]
[1740128646072,15.63174333,176.72,176.69,5.69707549]
[1740128647477,9.97494333,176.72,176.69,0.03947549]
[1740128647780,9.97494333,176.72,176.7,5.6572]
[1740128648282,15.63174333,176.72,176.7,5.6572]
[1740128648481,15.63174333,176.72,176.69,5.69717549]
[1740128649381,15.63174333,176.72,176.69,0.03947549]
[1740128650880,9.97494333,176.72,176.69,0.03947549]
[1740128652087,5.6571,176.71,176.69,0.03947549]
[1740128652885,15.63204333,176.72,176.69,5.69697549]
[1740128654276,9.97494333,176.72,176.69,5.69697549]
[1740128654478,9.97494333,176.72,176.7,5.6574]
[1740128654782,5.6567,176.73,176.7,5.6574]
[1740128656987,9.97494333,176.74,176.69,0.03947549]
[1740128657587,15.63134333,176.74,176.71,5.6569]
[1740128657787,15.63134333,176.74,176.69,0.03947549]
[1740128657981,9.97494333,176.74,176.69,0.03947549]
[1740128658488,5.6567,176.73,176.7,5.6574]
[1740128658683,9.97494333,176.74,176.69,0.03947549]
[1740128659083,9.97494333,176.72,176.69,0.03947549]
[1740128659277,9.97494333,176.7,176.6,2.2057]
[1740128659482,9.97494333,176.63,176.58,9.97494333]
[1740128659681,9.97494333,176.61,176.55,44.49696494]
[1740128660582,0.0364431,176.6,176.56,10.01213934]
[1740128661290,0.0364431,176.6,176.58,9.97494333]
[1740128661984,0.0364431,176.6,176.59,5.661]
[1740128666490,9.97494333,176.65,176.58,9.97494333]
[1740128666686,9.97494333,176.67,176.56,4.4445]
[1740128666892,9.97494333,176.67,176.62,9.97494333]
[1740128667281,12.30444333,176.71,176.64,9.97494333]
[1740128667487,9.97494333,176.71,176.64,9.97494333]
[1740128667681,9.97494333,176.71,176.66,0.03770049]
[1740128668593,15.63234333,176.71,176.67,5.6584]
[1740128668890,9.97494333,176.71,176.66,0.03770049]
[1740128669191,5.6575,176.7,176.66,5.69620049]
[1740128669386,5.6575,176.7,176.66,0.03770049]
[1740128669588,9.97494333,176.71,176.66,0.03770049]
[1740128669785,9.97494333,176.71,176.68,5.658]
[1740128670088,9.97494333,176.71,176.66,10.01264382]
[1740128670391,5.6577,176.7,176.66,15.67114382]
[1740128670986,5.6577,176.7,176.66,0.03770049]
[1740128671388,9.97494333,176.71,176.66,0.03770049]
[1740128671589,9.97494333,176.67,176.66,0.03770049]
[1740128671991,15.63334333,176.67,176.66,0.03770049]
[1740128672484,9.97494333,176.67,176.59,9.97494333]
[1740128672684,9.97494333,176.67,176.56,4.4445]
[1740128672685,9.97494333,176.63,176.57,9.97494333]
[1740128672890,9.97494333,176.61,176.55,54.47190827]
[1740128673085,9.97494333,176.57,176.51,20.06550145]
[1740128673285,9.97494333,176.57,176.53,5.6626]
[1740128673585,15.63614333,176.59,176.53,9.97494333]
[1740128673788,0.04073288,176.57,176.53,10.01192491]
[1740128675586,10.01567621,176.57,176.53,0.03698158]
[1740128675988,9.97494333,176.55,176.53,0.03698158]
[1740128677398,5.6626,176.54,176.53,0.03698158]
[1740128679793,5.6642,176.49,176.45,17.99394333]
[1740128680093,9.97494333,176.48,176.41,9.97494333]
[1740128680897,0.04250001,176.46,176.43,5.70519077]
[1740128681095,0.04250001,176.46,176.43,0.03939077]
[1740128681294,0.04250001,176.46,176.43,10.0143341]
[1740128681598,0.04250001,176.46,176.45,15.64044333]
[1740128681897,9.97494333,176.52,176.45,9.97494333]
[1740128682091,9.97494333,176.52,176.43,0.03939077]
[1740128682092,9.97494333,176.52,176.47,9.97494333]
[1740128682296,9.97494333,176.5,176.43,9.97494333]
[1740128683196,0.03521445,176.48,176.46,5.665]
[1740128683696,0.03521445,176.48,176.46,5.6651]
[1740128683898,0.03521445,176.48,176.45,10.01251143]
[1740128685397,0.03521445,176.48,176.47,5.6648]
[1740128687095,5.665,176.47,176.45,0.0375681]
[1740128687300,10.01015778,176.48,176.45,0.0375681]
[1740128687700,0.03521445,176.48,176.45,5.7027681]
[1740128688193,0.03521445,176.48,176.45,10.01251143]
[1740128688394,10.01015778,176.48,176.45,0.0375681]
[1740128688591,9.97494333,176.46,176.39,9.97494333]
[1740128688791,9.97494333,176.44,176.37,12.24614333]
[1740128688995,9.97494333,176.44,176.37,9.97494333]
[1740128689397,9.97494333,176.44,176.38,5.6676]
[1740128689398,5.6668,176.41,176.38,5.6676]
[1740128689592,5.6668,176.41,176.37,9.97494333]
[1740128689793,5.70383875,176.41,176.38,0.03765546]
[1740128689997,0.03703875,176.41,176.38,5.70525546]
[1740128690398,0.03703875,176.41,176.38,0.03765546]
[1740128691705,5.70383875,176.41,176.38,0.03765546]
[1740128692204,0.03703875,176.41,176.39,5.6673]
[1740128696106,0.03703875,176.41,176.4,5.6671]
[1740128697105,0.03703875,176.41,176.38,0.03765546]
[1740128697304,0.03703875,176.41,176.39,5.6674]
[1740128698399,0.03703875,176.41,176.4,5.6671]
[1740128701308,0.03703875,176.41,176.38,5.70525546]
[1740128701813,10.01198208,176.41,176.38,0.03765546]
[1740128702006,9.97494333,176.39,176.38,0.03765546]
[1740128702505,15.64234333,176.39,176.38,0.03765546]
[1740128703410,2.2665,176.4,176.38,0.03765546]
[1740128703611,0.03703875,176.41,176.38,10.01259879]
[1740128704204,0.03703875,176.41,176.38,0.03765546]
[1740128704709,0.03703875,176.41,176.38,10.01259879]
[1740128705013,0.03703875,176.41,176.4,5.6671]
[1740128710609,20.01451708,176.53,176.46,5.6649]